[Event "Titled Tuesday Blitz August 1 Early 2023"]
[White "chessmateto"]
[Black "Fernandez Siles, Luis"]
[BlackFideId "2209420"]
[WhiteElo "2454"]
[BlackElo "2295"]
[Result "1-0"]
[Round "9"]
[TimeControl "180+1"]
[Date "2023.08.01"]
[WhiteClock "0:00:04"]
[BlackClock "0:00:00"]
[Board "138"]

1. c4 {[%clk 0:02:59]}  Nf6 {[%clk 0:02:57]} 2. Nc3 {[%clk 0:02:59]}  g6 {[%clk 0:02:56]} 3. Nf3 {[%clk 0:02:57]}  Bg7 {[%clk 0:02:56]} 4. g3 {[%clk 0:02:57]}  O-O {[%clk 0:02:55]} 5. Bg2 {[%clk 0:02:58]}  d6 {[%clk 0:02:55]} 6. O-O {[%clk 0:02:58]}  Nc6 {[%clk 0:02:54]} 7. d4 {[%clk 0:02:58]}  Bf5 {[%clk 0:02:51]} 8. Re1 {[%clk 0:02:54]}  Ne4 {[%clk 0:02:49]} 9. Nxe4 {[%clk 0:02:18]}  Bxe4 {[%clk 0:02:48]} 10. Be3 {[%clk 0:02:08]}  e5 {[%clk 0:02:37]} 11. d5 {[%clk 0:02:03]}  Bxf3 {[%clk 0:02:23]} 12. Bxf3 {[%clk 0:02:03]}  Nd4 {[%clk 0:02:24]} 13. Bxd4 {[%clk 0:01:55]}  exd4 {[%clk 0:02:23]} 14. Qd3 {[%clk 0:01:51]}  h5 {[%clk 0:02:14]} 15. h4 {[%clk 0:01:46]}  Qf6 {[%clk 0:02:01]} 16. Rac1 {[%clk 0:01:44]}  b6 {[%clk 0:01:54]} 17. b4 {[%clk 0:01:35]}  a5 {[%clk 0:01:54]} 18. a3 {[%clk 0:01:31]}  axb4 {[%clk 0:01:48]} 19. axb4 {[%clk 0:01:31]}  Ra4 {[%clk 0:01:45]} 20. Rb1 {[%clk 0:01:02]}  Rfa8 {[%clk 0:01:41]} 21. Rec1 {[%clk 0:01:01]}  Ra3 {[%clk 0:01:33]} 22. Rb3 {[%clk 0:01:00]}  Ra1 {[%clk 0:01:24]} 23. Rbb1 {[%clk 0:00:55]}  R1a3 {[%clk 0:01:19]} 24. Rb3 {[%clk 0:00:55]}  Ra2 {[%clk 0:01:18]} 25. c5 {[%clk 0:00:48]}  g5 {[%clk 0:01:14]} 26. hxg5 {[%clk 0:00:38]}  Qxg5 {[%clk 0:01:13]} 27. Rcb1 {[%clk 0:00:31]}  h4 {[%clk 0:01:07]} 28. Kg2 {[%clk 0:00:31]}  Be5 {[%clk 0:01:04]} 29. Be4 {[%clk 0:00:25]}  hxg3 {[%clk 0:00:56]} 30. fxg3 {[%clk 0:00:22]}  Rd2 {[%clk 0:00:47]} 31. Qf3 {[%clk 0:00:20]}  Raa2 {[%clk 0:00:46]} 32. Bd3 {[%clk 0:00:18]}  f5 {[%clk 0:00:38]} 33. Rh1 {[%clk 0:00:18]}  f4 {[%clk 0:00:37]} 34. g4 {[%clk 0:00:15]}  Bg7 {[%clk 0:00:24]} 35. Rh5 {[%clk 0:00:14]}  Qe7 {[%clk 0:00:24]} 36. Qxf4 {[%clk 0:00:12]}  Rxe2+ {[%clk 0:00:23]} 37. Bxe2 {[%clk 0:00:11]}  Qxe2+ {[%clk 0:00:23]} 38. Kg3 {[%clk 0:00:10]}  Qg2+ {[%clk 0:00:20]} 39. Kh4 {[%clk 0:00:10]}  Rf2 {[%clk 0:00:13]} 40. Qg3 {[%clk 0:00:06]}  Bf6+ {[%clk 0:00:13]} 41. g5 {[%clk 0:00:07]}  Qe4+ {[%clk 0:00:10]} 42. Qg4 {[%clk 0:00:03]}  Rh2+ {[%clk 0:00:10]} 43. Kg3 {[%clk 0:00:04]}  Qg2+ {[%clk 0:00:08]} 44. Kf4 {[%clk 0:00:04]}  Qf2+ {[%clk 0:00:00]} 45. Rf3 {[%clk 0:00:04]} 1-0


[Site "https://www.chess.com"]

[Event "Titled Tuesday Blitz August 1 Early 2023"]
[White "Xavier_mompel"]
[Black "Carrasco Miranda, Andres"]
[BlackFideId "3405990"]
[WhiteElo "2287"]
[BlackElo "2443"]
[Result "1/2-1/2"]
[Round "9"]
[TimeControl "180+1"]
[Date "2023.08.01"]
[WhiteClock "0:01:06"]
[BlackClock "0:01:48"]
[Board "140"]

1. e4 {[%clk 0:03:00]}  e5 {[%clk 0:02:59]} 2. Nf3 {[%clk 0:03:00]}  Nc6 {[%clk 0:02:59]} 3. Bb5 {[%clk 0:02:59]}  Nf6 {[%clk 0:02:59]} 4. O-O {[%clk 0:02:58]}  Nxe4 {[%clk 0:02:57]} 5. d4 {[%clk 0:02:58]}  Nd6 {[%clk 0:02:58]} 6. Bxc6 {[%clk 0:02:57]}  dxc6 {[%clk 0:02:58]} 7. dxe5 {[%clk 0:02:57]}  Nf5 {[%clk 0:02:59]} 8. Qxd8+ {[%clk 0:02:57]}  Kxd8 {[%clk 0:03:00]} 9. Bg5+ {[%clk 0:02:56]}  Ke8 {[%clk 0:02:59]} 10. Nc3 {[%clk 0:02:53]}  Be6 {[%clk 0:02:58]} 11. a3 {[%clk 0:02:46]}  h6 {[%clk 0:02:57]} 12. Bf4 {[%clk 0:02:44]}  Be7 {[%clk 0:02:55]} 13. h3 {[%clk 0:02:41]}  h5 {[%clk 0:02:54]} 14. Rad1 {[%clk 0:02:38]}  Rd8 {[%clk 0:02:53]} 15. Rxd8+ {[%clk 0:02:35]}  Kxd8 {[%clk 0:02:53]} 16. Rd1+ {[%clk 0:02:35]}  Kc8 {[%clk 0:02:53]} 17. Ne4 {[%clk 0:02:32]}  b6 {[%clk 0:02:49]} 18. Ng3 {[%clk 0:02:12]}  h4 {[%clk 0:02:40]} 19. Nxf5 {[%clk 0:02:07]}  Bxf5 {[%clk 0:02:41]} 20. Nd4 {[%clk 0:01:59]}  Bd7 {[%clk 0:02:35]} 21. c3 {[%clk 0:01:44]}  c5 {[%clk 0:02:32]} 22. Nf3 {[%clk 0:01:39]}  Bc6 {[%clk 0:02:23]} 23. Ng5 {[%clk 0:01:37]}  Bxg5 {[%clk 0:02:21]} 24. Bxg5 {[%clk 0:01:38]}  Rh5 {[%clk 0:02:09]} 25. Bf4 {[%clk 0:01:30]}  Rf5 {[%clk 0:02:01]} 26. Bh2 {[%clk 0:01:30]}  g5 {[%clk 0:02:00]} 27. f3 {[%clk 0:01:06]}  f6 {[%clk 0:01:48]} 1/2-1/2


[Site "https://www.chess.com"]

[Event "Titled Tuesday Blitz August 1 Early 2023"]
[White "Avazkhonov, Alikhon"]
[Black "Tqebuchava, Zurab"]
[WhiteFideId "14208504"]
[BlackFideId "13601113"]
[WhiteElo "2414"]
[BlackElo "2269"]
[Result "0-1"]
[Round "9"]
[TimeControl "180+1"]
[Date "2023.08.01"]
[WhiteClock "0:00:00"]
[BlackClock "0:00:06"]
[Board "143"]

1. d4 {[%clk 0:02:59]}  d6 {[%clk 0:03:00]} 2. c4 {[%clk 0:03:00]}  Nf6 {[%clk 0:02:59]} 3. Nf3 {[%clk 0:03:01]}  Nbd7 {[%clk 0:02:59]} 4. Nc3 {[%clk 0:03:01]}  e5 {[%clk 0:03:00]} 5. e4 {[%clk 0:03:02]}  exd4 {[%clk 0:02:57]} 6. Nxd4 {[%clk 0:03:03]}  g6 {[%clk 0:02:57]} 7. Be2 {[%clk 0:02:48]}  Bg7 {[%clk 0:02:56]} 8. O-O {[%clk 0:02:48]}  O-O {[%clk 0:02:56]} 9. Be3 {[%clk 0:02:46]}  Nc5 {[%clk 0:02:52]} 10. f3 {[%clk 0:02:46]}  a5 {[%clk 0:02:50]} 11. a3 {[%clk 0:02:44]}  a4 {[%clk 0:02:44]} 12. Ndb5 {[%clk 0:02:39]}  Bd7 {[%clk 0:02:25]} 13. Bxc5 {[%clk 0:02:33]}  dxc5 {[%clk 0:02:25]} 14. Nxa4 {[%clk 0:02:33]}  Bxb5 {[%clk 0:02:23]} 15. cxb5 {[%clk 0:02:34]}  Qxd1 {[%clk 0:02:19]} 16. Bxd1 {[%clk 0:02:35]}  Ra5 {[%clk 0:01:56]} 17. Nxc5 {[%clk 0:02:32]}  Rxb5 {[%clk 0:01:56]} 18. Nd3 {[%clk 0:02:20]}  Rd8 {[%clk 0:01:50]} 19. Be2 {[%clk 0:02:20]}  Nd7 {[%clk 0:01:23]} 20. Rab1 {[%clk 0:02:13]}  Ne5 {[%clk 0:01:18]} 21. Nf4 {[%clk 0:02:11]}  Rb3 {[%clk 0:01:09]} 22. Nd5 {[%clk 0:02:09]}  c6 {[%clk 0:01:05]} 23. Nc3 {[%clk 0:02:03]}  Rd2 {[%clk 0:01:03]} 24. Rfd1 {[%clk 0:01:52]}  Rbxb2 {[%clk 0:00:46]} 25. Rxb2 {[%clk 0:01:53]}  Rxb2 {[%clk 0:00:46]} 26. Rd8+ {[%clk 0:00:47]}  Bf8 {[%clk 0:00:46]} 27. Kf1 {[%clk 0:00:48]}  Kg7 {[%clk 0:00:44]} 28. Nd1 {[%clk 0:00:44]}  Rc2 {[%clk 0:00:31]} 29. a4 {[%clk 0:00:23]}  Nc4 {[%clk 0:00:30]} 30. f4 {[%clk 0:00:20]}  Nd2+ {[%clk 0:00:22]} 31. Ke1 {[%clk 0:00:21]}  Nxe4 {[%clk 0:00:23]} 32. Bd3 {[%clk 0:00:21]}  Bb4+ {[%clk 0:00:16]} 33. Kf1 {[%clk 0:00:18]}  Rd2 {[%clk 0:00:16]} 34. Ne3 {[%clk 0:00:15]}  Nc5 {[%clk 0:00:11]} 35. Rd4 {[%clk 0:00:05]}  Bc3 {[%clk 0:00:09]} 36. Rc4 {[%clk 0:00:05]}  Rxd3 {[%clk 0:00:09]} 37. Ke2 {[%clk 0:00:03]}  Rd2+ {[%clk 0:00:08]} 38. Kf3 {[%clk 0:00:03]}  Ne6 {[%clk 0:00:06]} 39. Rxc3 {[%clk 0:00:03]}  Ra2 {[%clk 0:00:07]} 40. Rc4 {[%clk 0:00:01]}  Ra3 {[%clk 0:00:06]} 41. Ke4 {[%clk 0:00:01]}  h5 {[%clk 0:00:06]} 42. f5 {[%clk 0:00:00]}  Rxa4 {[%clk 0:00:06]} 0-1


[Site "https://www.chess.com"]

[Event "Titled Tuesday Blitz August 1 Early 2023"]
[White "Bueno, Alfeu Junior Varela"]
[Black "Tuleyeva-Aketayeva, Dana"]
[WhiteFideId "2108879"]
[BlackFideId "13701932"]
[WhiteElo "2390"]
[BlackElo "2242"]
[Result "1-0"]
[Round "9"]
[TimeControl "180+1"]
[Date "2023.08.01"]
[WhiteClock "0:00:33"]
[BlackClock "0:00:01"]
[Board "147"]

1. e4 {[%clk 0:03:00]}  c5 {[%clk 0:02:31]} 2. Nc3 {[%clk 0:02:58]}  Nc6 {[%clk 0:02:28]} 3. f4 {[%clk 0:02:58]}  g6 {[%clk 0:02:27]} 4. Nf3 {[%clk 0:02:59]}  Bg7 {[%clk 0:02:28]} 5. Bb5 {[%clk 0:03:00]}  Nd4 {[%clk 0:02:27]} 6. O-O {[%clk 0:03:00]}  Nxb5 {[%clk 0:02:27]} 7. Nxb5 {[%clk 0:03:01]}  Nf6 {[%clk 0:02:24]} 8. d3 {[%clk 0:02:59]}  O-O {[%clk 0:02:22]} 9. Qe1 {[%clk 0:02:53]}  d5 {[%clk 0:02:14]} 10. e5 {[%clk 0:02:45]}  Ne8 {[%clk 0:02:14]} 11. Qh4 {[%clk 0:02:44]}  Nc7 {[%clk 0:02:13]} 12. Nxc7 {[%clk 0:02:30]}  Qxc7 {[%clk 0:02:13]} 13. Ng5 {[%clk 0:02:30]}  h6 {[%clk 0:02:12]} 14. Nf3 {[%clk 0:02:28]}  c4 {[%clk 0:01:57]} 15. d4 {[%clk 0:02:20]}  c3 {[%clk 0:01:56]} 16. bxc3 {[%clk 0:01:53]}  Qxc3 {[%clk 0:01:57]} 17. Bd2 {[%clk 0:01:51]}  Qc7 {[%clk 0:01:53]} 18. f5 {[%clk 0:01:39]}  Bxf5 {[%clk 0:01:32]} 19. Bxh6 {[%clk 0:01:37]}  Be4 {[%clk 0:01:22]} 20. Ng5 {[%clk 0:01:35]}  Qxc2 {[%clk 0:01:14]} 21. Rf2 {[%clk 0:01:24]}  Qc3 {[%clk 0:01:14]} 22. Raf1 {[%clk 0:01:11]}  f6 {[%clk 0:00:25]} 23. Bxg7 {[%clk 0:01:01]}  Qh3 {[%clk 0:00:02]} 24. Qxh3 {[%clk 0:00:40]}  fxg5 {[%clk 0:00:01]} 25. Qh8# {[%clk 0:00:33]} 1-0


[Site "https://www.chess.com"]

[Event "Titled Tuesday Blitz August 1 Early 2023"]
[White "alfianasybullina"]
[Black "Pershina, Elena"]
[BlackFideId "24147516"]
[WhiteElo "2235"]
[BlackElo "2388"]
[Result "1-0"]
[Round "9"]
[TimeControl "180+1"]
[Date "2023.08.01"]
[WhiteClock "0:00:18"]
[BlackClock "0:00:10"]
[Board "148"]

1. Nf3 {[%clk 0:03:00]}  c5 {[%clk 0:03:00]} 2. e4 {[%clk 0:02:58]}  Nc6 {[%clk 0:02:58]} 3. d3 {[%clk 0:02:58]}  g6 {[%clk 0:02:57]} 4. g3 {[%clk 0:02:59]}  Bg7 {[%clk 0:02:57]} 5. Bg2 {[%clk 0:02:59]}  d6 {[%clk 0:02:56]} 6. O-O {[%clk 0:02:59]}  e5 {[%clk 0:02:55]} 7. c3 {[%clk 0:02:58]}  Nge7 {[%clk 0:02:55]} 8. Nbd2 {[%clk 0:02:58]}  O-O {[%clk 0:02:54]} 9. Nc4 {[%clk 0:02:52]}  b5 {[%clk 0:02:50]} 10. Ne3 {[%clk 0:02:52]}  Rb8 {[%clk 0:02:50]} 11. Nd5 {[%clk 0:02:41]}  Nxd5 {[%clk 0:02:49]} 12. exd5 {[%clk 0:02:42]}  Ne7 {[%clk 0:02:49]} 13. c4 {[%clk 0:02:34]}  a6 {[%clk 0:02:44]} 14. Nd2 {[%clk 0:02:28]}  Nf5 {[%clk 0:02:42]} 15. Ne4 {[%clk 0:02:14]}  Nd4 {[%clk 0:02:38]} 16. b3 {[%clk 0:02:10]}  f5 {[%clk 0:02:31]} 17. Bg5 {[%clk 0:02:10]}  Qb6 {[%clk 0:02:17]} 18. Be7 {[%clk 0:02:07]}  fxe4 {[%clk 0:02:14]} 19. Bxf8 {[%clk 0:02:07]}  Bxf8 {[%clk 0:02:13]} 20. Bxe4 {[%clk 0:02:06]}  Bd7 {[%clk 0:02:08]} 21. f4 {[%clk 0:02:01]}  Bg7 {[%clk 0:02:08]} 22. Rb1 {[%clk 0:02:00]}  Rf8 {[%clk 0:01:58]} 23. fxe5 {[%clk 0:01:58]}  Rxf1+ {[%clk 0:01:45]} 24. Qxf1 {[%clk 0:01:56]}  Bxe5 {[%clk 0:01:46]} 25. Bg2 {[%clk 0:01:49]}  Qd8 {[%clk 0:01:44]} 26. Bh3 {[%clk 0:01:43]}  Kg7 {[%clk 0:01:36]} 27. Bxd7 {[%clk 0:01:35]}  Qxd7 {[%clk 0:01:37]} 28. Re1 {[%clk 0:01:26]}  Qg4 {[%clk 0:01:35]} 29. Re4 {[%clk 0:01:22]}  Qf5 {[%clk 0:01:17]} 30. g4 {[%clk 0:01:10]}  Qg5 {[%clk 0:01:06]} 31. Kh1 {[%clk 0:00:52]}  Qd2 {[%clk 0:01:03]} 32. Qh3 {[%clk 0:00:37]}  Nf3 {[%clk 0:00:52]} 33. g5 {[%clk 0:00:20]}  Qxh2+ {[%clk 0:00:18]} 34. Qxh2 {[%clk 0:00:19]}  Nxh2 {[%clk 0:00:19]} 35. Rxe5 {[%clk 0:00:19]}  dxe5 {[%clk 0:00:18]} 36. Kxh2 {[%clk 0:00:19]}  bxc4 {[%clk 0:00:16]} 37. bxc4 {[%clk 0:00:18]}  Kf7 {[%clk 0:00:12]} 38. Kg3 {[%clk 0:00:18]}  Ke7 {[%clk 0:00:13]} 39. Kg4 {[%clk 0:00:18]}  Kd6 {[%clk 0:00:12]} 40. Kf3 {[%clk 0:00:18]}  Kd7 {[%clk 0:00:11]} 41. Ke4 {[%clk 0:00:18]}  Kd6 {[%clk 0:00:11]} 42. Ke3 {[%clk 0:00:19]}  Kd7 {[%clk 0:00:11]} 43. Kf3 {[%clk 0:00:19]}  Ke7 {[%clk 0:00:10]} 44. Ke4 {[%clk 0:00:18]}  Kd6 {[%clk 0:00:11]} 45. a3 {[%clk 0:00:18]}  a5 {[%clk 0:00:11]} 46. a4 {[%clk 0:00:18]}  Kd7 {[%clk 0:00:10]} 47. Kxe5 {[%clk 0:00:18]}  Ke7 {[%clk 0:00:11]} 48. d6+ {[%clk 0:00:18]}  Kd7 {[%clk 0:00:12]} 49. Kd5 {[%clk 0:00:18]}  h5 {[%clk 0:00:10]} 50. gxh6 {[%clk 0:00:18]} 1-0


[Site "https://www.chess.com"]

[Event "Titled Tuesday Blitz August 1 Early 2023"]
[White "UgarteCesar"]
[Black "Spichkin, Alexander"]
[BlackFideId "4144074"]
[WhiteElo "2224"]
[BlackElo "2385"]
[Result "0-1"]
[Round "9"]
[TimeControl "180+1"]
[Date "2023.08.01"]
[WhiteClock "0:00:00"]
[BlackClock "0:01:17"]
[Board "149"]

1. d4 {[%clk 0:03:00]}  e6 {[%clk 0:02:59]} 2. Bf4 {[%clk 0:03:00]}  f5 {[%clk 0:03:00]} 3. e3 {[%clk 0:02:59]}  Nf6 {[%clk 0:03:01]} 4. Bg5 {[%clk 0:02:59]}  Be7 {[%clk 0:03:01]} 5. Bxf6 {[%clk 0:02:59]}  Bxf6 {[%clk 0:03:01]} 6. Nf3 {[%clk 0:03:00]}  O-O {[%clk 0:03:01]} 7. Bd3 {[%clk 0:03:00]}  b6 {[%clk 0:03:01]} 8. Nbd2 {[%clk 0:02:59]}  Bb7 {[%clk 0:03:02]} 9. O-O {[%clk 0:02:59]}  d5 {[%clk 0:03:02]} 10. a4 {[%clk 0:02:58]}  Nd7 {[%clk 0:03:02]} 11. c4 {[%clk 0:02:57]}  c5 {[%clk 0:03:02]} 12. Qe2 {[%clk 0:02:55]}  Rc8 {[%clk 0:03:01]} 13. Rfd1 {[%clk 0:02:54]}  Qe7 {[%clk 0:02:57]} 14. a5 {[%clk 0:02:54]}  cxd4 {[%clk 0:02:53]} 15. exd4 {[%clk 0:02:50]}  dxc4 {[%clk 0:02:53]} 16. Bxc4 {[%clk 0:02:48]}  Rfe8 {[%clk 0:02:51]} 17. axb6 {[%clk 0:02:47]}  Nxb6 {[%clk 0:02:50]} 18. Bb3 {[%clk 0:02:40]}  Nd5 {[%clk 0:02:47]} 19. Rxa7 {[%clk 0:02:33]}  Nf4 {[%clk 0:02:47]} 20. Qb5 {[%clk 0:02:22]}  Rb8 {[%clk 0:02:38]} 21. Qxf5 {[%clk 0:01:59]}  Ne2+ {[%clk 0:02:21]} 22. Kh1 {[%clk 0:01:41]}  Nxd4 {[%clk 0:02:16]} 23. Nxd4 {[%clk 0:01:16]}  Bxg2+ {[%clk 0:02:15]} 24. Kxg2 {[%clk 0:01:13]}  Qxa7 {[%clk 0:02:15]} 25. Nxe6 {[%clk 0:01:07]}  Kh8 {[%clk 0:02:04]} 26. Ng5 {[%clk 0:00:43]}  Bxg5 {[%clk 0:01:51]} 27. Qxg5 {[%clk 0:00:44]}  Red8 {[%clk 0:01:47]} 28. Nf3 {[%clk 0:00:26]}  Rf8 {[%clk 0:01:41]} 29. Bd5 {[%clk 0:00:21]}  Rxb2 {[%clk 0:01:38]} 30. Rf1 {[%clk 0:00:18]}  Rb5 {[%clk 0:01:35]} 31. Qd2 {[%clk 0:00:11]}  Qd7 {[%clk 0:01:29]} 32. Qa2 {[%clk 0:00:10]}  Rxd5 {[%clk 0:01:27]} 33. Qc4 {[%clk 0:00:04]}  Qe6 {[%clk 0:01:21]} 34. Kh1 {[%clk 0:00:00]}  Rxf3 {[%clk 0:01:17]} 0-1


[Site "https://www.chess.com"]

[Event "Titled Tuesday Blitz August 1 Early 2023"]
[White "Gyulamiryan-koryun"]
[Black "Levitan, Caleb Levi"]
[BlackFideId "14332620"]
[WhiteElo "2091"]
[BlackElo "2306"]
[Result "1-0"]
[Round "9"]
[TimeControl "180+1"]
[Date "2023.08.01"]
[WhiteClock "0:00:10"]
[BlackClock "0:00:00"]
[Board "154"]

1. d4 {[%clk 0:02:56]}  d5 {[%clk 0:02:59]} 2. c4 {[%clk 0:02:54]}  e6 {[%clk 0:02:59]} 3. Nf3 {[%clk 0:02:52]}  Nf6 {[%clk 0:02:59]} 4. g3 {[%clk 0:02:52]}  dxc4 {[%clk 0:02:58]} 5. Bg2 {[%clk 0:02:51]}  Bb4+ {[%clk 0:02:59]} 6. Bd2 {[%clk 0:02:51]}  c5 {[%clk 0:02:59]} 7. dxc5 {[%clk 0:02:36]}  Bxc5 {[%clk 0:02:57]} 8. O-O {[%clk 0:02:35]}  O-O {[%clk 0:02:55]} 9. Qc2 {[%clk 0:02:30]}  Nbd7 {[%clk 0:02:54]} 10. Qxc4 {[%clk 0:02:23]}  b5 {[%clk 0:02:49]} 11. Qh4 {[%clk 0:02:08]}  Bb7 {[%clk 0:02:44]} 12. Nc3 {[%clk 0:02:05]}  a6 {[%clk 0:02:41]} 13. Rfd1 {[%clk 0:02:01]}  Qb6 {[%clk 0:02:22]} 14. e3 {[%clk 0:01:44]}  h6 {[%clk 0:02:11]} 15. Rac1 {[%clk 0:01:37]}  Rac8 {[%clk 0:02:06]} 16. Ne2 {[%clk 0:01:31]}  Be7 {[%clk 0:01:43]} 17. Qh3 {[%clk 0:01:23]}  Rxc1 {[%clk 0:01:33]} 18. Rxc1 {[%clk 0:01:22]}  Rd8 {[%clk 0:01:31]} 19. Bc3 {[%clk 0:01:19]}  Rc8 {[%clk 0:01:02]} 20. Rd1 {[%clk 0:01:16]}  Nc5 {[%clk 0:00:49]} 21. Bd4 {[%clk 0:01:13]}  Qa5 {[%clk 0:00:31]} 22. a3 {[%clk 0:01:11]}  Nce4 {[%clk 0:00:24]} 23. Nc3 {[%clk 0:00:59]}  Nxc3 {[%clk 0:00:21]} 24. Bxc3 {[%clk 0:00:59]}  Qa4 {[%clk 0:00:20]} 25. Rd4 {[%clk 0:00:55]}  Qc2 {[%clk 0:00:16]} 26. Ne1 {[%clk 0:00:44]}  Bxg2 {[%clk 0:00:10]} 27. Qxg2 {[%clk 0:00:44]}  Qc1 {[%clk 0:00:09]} 28. Qf1 {[%clk 0:00:38]}  Nd5 {[%clk 0:00:10]} 29. Qe2 {[%clk 0:00:19]}  Nxc3 {[%clk 0:00:09]} 30. bxc3 {[%clk 0:00:19]}  Qxc3 {[%clk 0:00:09]} 31. Rd2 {[%clk 0:00:15]}  Bxa3 {[%clk 0:00:08]} 32. Rc2 {[%clk 0:00:15]}  Qxe1+ {[%clk 0:00:05]} 33. Qxe1 {[%clk 0:00:14]}  Rxc2 {[%clk 0:00:06]} 34. Kg2 {[%clk 0:00:13]}  b4 {[%clk 0:00:05]} 35. Qb1 {[%clk 0:00:12]}  Rc3 {[%clk 0:00:04]} 36. Qd1 {[%clk 0:00:11]}  a5 {[%clk 0:00:04]} 37. Qd8+ {[%clk 0:00:10]}  Kh7 {[%clk 0:00:05]} 38. Qxa5 {[%clk 0:00:11]}  Rc2 {[%clk 0:00:03]} 39. Qb5 {[%clk 0:00:10]}  Rb2 {[%clk 0:00:03]} 40. Qd3+ {[%clk 0:00:10]}  g6 {[%clk 0:00:03]} 41. h4 {[%clk 0:00:11]}  Kg8 {[%clk 0:00:03]} 42. h5 {[%clk 0:00:11]}  b3 {[%clk 0:00:03]} 43. hxg6 {[%clk 0:00:11]}  fxg6 {[%clk 0:00:02]} 44. Qxg6+ {[%clk 0:00:12]}  Kf8 {[%clk 0:00:03]} 45. Qxe6 {[%clk 0:00:12]}  Kg7 {[%clk 0:00:03]} 46. Qe5+ {[%clk 0:00:12]}  Kf7 {[%clk 0:00:02]} 47. Qd5+ {[%clk 0:00:12]}  Kg6 {[%clk 0:00:02]} 48. Qa5 {[%clk 0:00:12]}  Be7 {[%clk 0:00:02]} 49. Qb6+ {[%clk 0:00:11]}  Bf6 {[%clk 0:00:02]} 50. e4 {[%clk 0:00:10]}  Re2 {[%clk 0:00:00]} 51. Kf3 {[%clk 0:00:10]} 1-0


[Site "https://www.chess.com"]

[Event "Titled Tuesday Blitz August 1 Early 2023"]
[White "Stachanczyk, Jacek"]
[Black "Ziatdinov, Raset"]
[WhiteFideId "1116657"]
[BlackFideId "2015323"]
[WhiteElo "2413"]
[BlackElo "2289"]
[Result "0-1"]
[Round "9"]
[TimeControl "180+1"]
[Date "2023.08.01"]
[WhiteClock "0:00:50"]
[BlackClock "0:00:45"]
[Board "156"]

1. e4 {[%clk 0:03:00]}  c5 {[%clk 0:02:58]} 2. Nf3 {[%clk 0:02:55]}  e6 {[%clk 0:02:58]} 3. d4 {[%clk 0:02:55]}  cxd4 {[%clk 0:02:59]} 4. Nxd4 {[%clk 0:02:56]}  a6 {[%clk 0:03:00]} 5. Bd3 {[%clk 0:02:52]}  Qc7 {[%clk 0:03:00]} 6. c4 {[%clk 0:02:49]}  Nf6 {[%clk 0:02:59]} 7. Nc3 {[%clk 0:02:49]}  Nc6 {[%clk 0:02:59]} 8. Nxc6 {[%clk 0:02:42]}  dxc6 {[%clk 0:03:00]} 9. O-O {[%clk 0:02:37]}  Bc5 {[%clk 0:02:58]} 10. b3 {[%clk 0:02:24]}  O-O {[%clk 0:02:57]} 11. Bb2 {[%clk 0:02:24]}  e5 {[%clk 0:02:57]} 12. Qf3 {[%clk 0:02:19]}  Rd8 {[%clk 0:02:45]} 13. Qg3 {[%clk 0:02:19]}  Bd4 {[%clk 0:02:41]} 14. Rab1 {[%clk 0:02:13]}  Nh5 {[%clk 0:02:40]} 15. Qf3 {[%clk 0:02:13]}  Nf4 {[%clk 0:02:40]} 16. Bc2 {[%clk 0:02:10]}  h5 {[%clk 0:02:27]} 17. h3 {[%clk 0:02:09]}  Rd6 {[%clk 0:02:27]} 18. Na4 {[%clk 0:01:59]}  Rg6 {[%clk 0:02:04]} 19. Bxd4 {[%clk 0:01:49]}  exd4 {[%clk 0:01:59]} 20. g3 {[%clk 0:01:43]}  Bxh3 {[%clk 0:01:52]} 21. Rfd1 {[%clk 0:01:40]}  Bg4 {[%clk 0:01:49]} 22. Qh1 {[%clk 0:01:32]}  Ne2+ {[%clk 0:01:21]} 23. Kg2 {[%clk 0:01:04]}  Nxg3 {[%clk 0:00:49]} 24. fxg3 {[%clk 0:00:57]}  Bf3+ {[%clk 0:00:49]} 25. Kxf3 {[%clk 0:00:53]}  Qxg3+ {[%clk 0:00:50]} 26. Ke2 {[%clk 0:00:53]}  Qe3+ {[%clk 0:00:50]} 27. Kf1 {[%clk 0:00:53]}  Rf6+ {[%clk 0:00:50]} 28. Kg2 {[%clk 0:00:54]}  Rf2+ {[%clk 0:00:45]} 29. Kg1 {[%clk 0:00:50]}  Qg3+ {[%clk 0:00:45]} 0-1


[Site "https://www.chess.com"]

[Event "Titled Tuesday Blitz August 1 Early 2023"]
[White "Slavin, Alexey"]
[Black "Schut, Han"]
[WhiteFideId "24104388"]
[BlackFideId "1005561"]
[WhiteElo "2357"]
[BlackElo "2268"]
[Result "1-0"]
[Round "9"]
[TimeControl "180+1"]
[Date "2023.08.01"]
[WhiteClock "0:00:08"]
[BlackClock "0:00:00"]
[Board "158"]

1. e4 {[%clk 0:02:59]}  c5 {[%clk 0:02:59]} 2. g3 {[%clk 0:02:59]}  g6 {[%clk 0:02:54]} 3. Bg2 {[%clk 0:02:59]}  Bg7 {[%clk 0:02:55]} 4. Ne2 {[%clk 0:02:59]}  Nc6 {[%clk 0:02:55]} 5. O-O {[%clk 0:02:59]}  e6 {[%clk 0:02:55]} 6. Nbc3 {[%clk 0:02:59]}  Nge7 {[%clk 0:02:55]} 7. a3 {[%clk 0:02:59]}  O-O {[%clk 0:02:55]} 8. Rb1 {[%clk 0:03:00]}  d5 {[%clk 0:02:54]} 9. exd5 {[%clk 0:02:59]}  exd5 {[%clk 0:02:46]} 10. b4 {[%clk 0:02:58]}  d4 {[%clk 0:02:40]} 11. Ne4 {[%clk 0:02:57]}  c4 {[%clk 0:02:38]} 12. d3 {[%clk 0:02:57]}  c3 {[%clk 0:02:32]} 13. b5 {[%clk 0:02:33]}  Ne5 {[%clk 0:02:27]} 14. Rb4 {[%clk 0:02:26]}  Nf5 {[%clk 0:02:07]} 15. Bg5 {[%clk 0:02:19]}  f6 {[%clk 0:02:00]} 16. Bf4 {[%clk 0:02:12]}  h5 {[%clk 0:01:49]} 17. h4 {[%clk 0:02:07]}  Nf7 {[%clk 0:01:02]} 18. Qb1 {[%clk 0:01:54]}  g5 {[%clk 0:01:01]} 19. hxg5 {[%clk 0:01:48]}  fxg5 {[%clk 0:01:02]} 20. Bc1 {[%clk 0:01:45]}  g4 {[%clk 0:00:52]} 21. Nf4 {[%clk 0:01:42]}  Ne5 {[%clk 0:00:40]} 22. Nxh5 {[%clk 0:01:35]}  Nf3+ {[%clk 0:00:40]} 23. Bxf3 {[%clk 0:01:22]}  gxf3 {[%clk 0:00:41]} 24. Qb3+ {[%clk 0:01:20]}  Kh8 {[%clk 0:00:35]} 25. Bg5 {[%clk 0:01:11]}  Qe8 {[%clk 0:00:34]} 26. Nf4 {[%clk 0:01:00]}  Be5 {[%clk 0:00:30]} 27. Qd5 {[%clk 0:00:12]}  Bxf4 {[%clk 0:00:25]} 28. gxf4 {[%clk 0:00:12]}  Qh5 {[%clk 0:00:17]} 29. Ng3 {[%clk 0:00:11]}  Nxg3 {[%clk 0:00:10]} 30. fxg3 {[%clk 0:00:11]}  Bg4 {[%clk 0:00:07]} 31. Qe5+ {[%clk 0:00:09]}  Kh7 {[%clk 0:00:05]} 32. Rxd4 {[%clk 0:00:09]}  Rf7 {[%clk 0:00:04]} 33. Rf2 {[%clk 0:00:08]}  Kg6 {[%clk 0:00:00]} 34. Rh2 {[%clk 0:00:08]} 1-0


[Site "https://www.chess.com"]